bitfinex/quotes_ETHUSD_20250722
["timestamp","ask_amount","ask_price","bid_price","bid_amount"]
[1753197536341,2.6955631,3709.8,3709.1,5.19046392]
[1753197536547,2.69594943,3709.3,3709.2,0.24510392]
[1753197536718,2.6955631,3709.8,3709.6,0.1344]
[1753197536924,3.1285631,3709.8,3709.7,4.52810392]
[1753197537327,2.6955631,3709.8,3709.7,4.52810392]
[1753197537526,0.433,3710.7,3709.8,0.7864]
[1753197537720,2.69539249,3710.1,3709.9,0.27205882]
[1753197537920,2.69539249,3710.1,3710.0,0.24510392]
[1753197538624,2.69534513,3710.1,3710.0,0.24510392]
[1753197538823,2.69527805,3710.2,3710.0,0.24510392]
[1753197539043,3.12821755,3710.3,3710.1,4.52810392]
[1753197539244,3.12819984,3710.3,3710.2,0.24510392]
[1753197539546,2.69519984,3710.3,3710.2,0.24510392]
[1753197539756,2.69527249,3710.2,3710.1,4.283]
[1753197539963,2.69527249,3710.2,3710.1,4.52861611]
[1753197540124,3.12827249,3710.2,3710.1,4.52561772]
[1753197540323,3.12827249,3710.2,3710.1,0.24561772]
[1753197540524,2.69592645,3709.3,3709.2,6.469]
[1753197540759,2.69592645,3709.3,3709.2,10.75]
[1753197540964,2.69592645,3709.3,3709.2,6.469]
[1753197541180,3.12892645,3709.3,3709.2,10.749]
[1753197541527,3.12892645,3709.3,3709.2,6.469]
[1753197541726,3.12892645,3709.3,3709.2,10.748]
[1753197541923,2.69592645,3709.3,3709.2,10.748]
[1753197542153,3.12892645,3709.3,3709.2,6.469]
[1753197542361,3.88462645,3709.3,3709.2,10.748]
[1753197543240,3.12892645,3709.3,3709.2,10.748]
[1753197544082,2.69592645,3709.3,3709.2,10.748]
[1753197544236,0.1983648,3711.2,3709.2,14.73668745]
[1753197544438,0.1983648,3711.2,3709.4,7.73608745]
[1753197544644,2.69540173,3710.1,3709.5,4.30795781]
[1753197544864,2.6949035,3710.8,3709.6,1.50440453]
[1753197545044,2.6949035,3710.8,3709.6,1.53136161]
[1753197545253,2.69534149,3710.2,3709.7,4.28]
[1753197545577,2.69529441,3710.2,3709.7,4.28]
[1753197545786,2.69529441,3710.2,3709.7,4.30695635]
[1753197545940,0.433,3710.9,3709.8,0.85071301]
[1753197545941,2.69499911,3710.6,3709.8,0.85071301]
[1753197546283,0.433,3711.4,3710.0,10.40313888]
[1753197546467,0.433,3711.4,3710.1,4.30495345]
[1753197546644,2.69498711,3710.6,3710.1,4.30495345]
[1753197546839,2.69498711,3710.6,3710.1,0.02695345]
[1753197547182,2.69447363,3711.3,3710.0,0.7609]
[1753197547183,2.69506615,3710.5,3710.2,4.65093263]
[1753197547377,2.69489706,3710.8,3710.2,4.65093263]
[1753197547593,2.69490931,3710.7,3710.6,0.1344]
[1753197547744,3.12790931,3710.7,3710.6,4.276]
[1753197548077,2.69512721,3710.4,3710.3,0.1344]
[1753197548287,2.69512721,3710.4,3710.3,4.4104]
[1753197548643,2.69512721,3710.4,3710.3,0.1344]
[1753197548844,2.69512721,3710.4,3710.3,4.4094]
[1753197549982,2.69512721,3710.4,3710.3,0.65143]
[1753197550183,2.69512721,3710.4,3710.3,4.4064]
[1753197550388,0.002,3710.5,3710.3,4.4064]
[1753197551000,2.69512721,3710.4,3710.3,0.1344]
[1753197551391,2.69527249,3710.2,3710.1,0.001]
[1753197551882,2.6955631,3709.8,3709.7,4.276]
[1753197552048,2.6955631,3709.8,3709.3,0.1344]
[1753197552049,2.69585377,3709.4,3709.3,0.1344]
[1753197552244,2.69579271,3709.5,3709.3,4.4094]
[1753197552442,2.69580913,3709.5,3709.3,5.49724]
[1753197552677,2.69585377,3709.4,3709.3,5.49824]
[1753197552878,3.12885377,3709.4,3709.3,0.1354]
[1753197553285,3.12885377,3709.4,3709.3,4.277]
[1753197553659,2.69585377,3709.4,3709.3,4.277]
[1753197553988,3.12885377,3709.4,3709.3,4.277]
[1753197554556,0.1344,3709.5,3709.3,4.277]
[1753197554782,2.69585377,3709.4,3709.3,4.277]
[1753197554986,3.12885377,3709.4,3709.3,4.278]
[1753197556809,2.69578801,3709.5,3709.3,4.278]
[1753197557124,2.69585377,3709.4,3709.3,4.278]
[1753197557887,3.12845377,3709.4,3709.3,0.001]
[1753197558095,3.12845377,3709.4,3709.3,4.276]
[1753197561328,3.12845377,3709.4,3709.3,0.001]
[1753197561530,4.55471318,3709.4,3709.3,0.001]
[1753197561677,4.55471318,3709.4,3709.3,4.268]
[1753197562102,0.4326,3709.9,3709.3,4.268]
[1753197562335,2.69585377,3709.4,3709.3,4.4024]
[1753197562516,2.69585377,3709.4,3709.3,0.1354]
[1753197562721,3.12845377,3709.4,3709.3,0.001]
[1753197562930,3.71087614,3709.4,3709.3,0.001]
[1753197563132,3.71087614,3709.4,3709.3,4.271]
[1753197563733,3.71087614,3709.4,3709.3,0.001]
[1753197564619,2.69585377,3709.4,3709.3,0.001]
[1753197564928,2.83025377,3709.4,3709.3,0.001]
[1753197565133,3.26285377,3709.4,3709.3,0.001]
[1753197565442,3.26285377,3709.4,3709.3,4.271]
[1753197567205,2.83025377,3709.4,3709.3,4.271]
[1753197568807,0.1344,3709.4,3709.3,4.271]
[1753197569014,0.1344,3710.2,3709.3,5.8481]
[1753197569214,2.6953386,3710.2,3709.8,0.1344]
[1753197569414,2.69541778,3710.0,3709.9,4.268]
[1753197569614,2.69541778,3710.0,3709.8,0.1344]
[1753197570137,2.69532498,3710.2,3709.9,4.267]
[1753197570536,0.1364,3710.5,3709.9,4.267]
[1753197570953,2.69539373,3710.1,3709.9,4.267]
[1753197571132,2.69541778,3710.0,3709.9,4.267]
[1753197571321,2.69534798,3710.1,3709.9,4.267]
[1753197571520,2.69541778,3710.0,3709.9,4.267]
[1753197571953,2.69535596,3710.1,3709.9,4.267]
[1753197572254,0.002,3710.1,3709.9,4.267]
[1753197572817,2.69735515,3710.1,3709.9,4.267]
[1753197573017,0.002,3710.1,3709.9,4.267]
[1753197573416,2.69735435,3710.1,3709.8,0.1344]
[1753197573616,2.69735435,3710.1,3710.0,4.262]
[1753197573913,0.002,3710.1,3710.0,4.262]
[1753197574118,0.002,3710.1,3710.0,4.70164]
[1753197574347,0.002,3710.1,3710.0,4.72859417]
[1753197574549,0.002,3710.1,3710.0,4.83604]
[1753197576252,0.002,3710.1,3710.0,5.88394]
[1753197576835,0.002,3710.1,3710.0,8.57935778]
[1753197577054,0.002,3710.1,3710.0,9.12935778]
[1753197577567,0.002,3710.1,3710.0,9.06935778]
[1753197578732,0.002,3710.1,3710.0,13.06935778]
[1753197578929,0.002,3710.1,3710.0,5.37594]
[1753197579133,0.002,3710.1,3710.0,12.87535778]
[1753197579368,0.002,3710.1,3710.0,13.12135778]
[1753197580272,0.002,3710.1,3710.0,12.98695778]
[1753197580785,0.002,3710.1,3710.0,15.98695778]
[1753197581101,1e-08,3710.1,3710.0,15.98695778]
[1753197581238,0.002,3710.5,3710.4,4.06642721]
[1753197581438,0.002,3710.5,3710.4,16.59307704]
[1753197581775,0.002,3710.5,3710.4,12.55812577]
[1753197582082,0.002,3710.5,3710.4,12.31212577]
[1753197582242,0.002,3710.5,3710.4,16.01612577]
[1753197582443,0.002,3710.5,3710.4,16.81212577]
[1753197583045,0.002,3710.5,3710.4,16.81412577]
[1753197583241,0.002,3710.5,3710.4,12.55812577]
[1753197583449,0.002,3710.5,3710.4,16.81612577]
[1753197583747,0.002,3710.5,3710.4,16.57012577]
[1753197583960,0.002,3710.5,3710.4,13.87499856]
[1753197585088,0.002,3710.5,3710.4,13.87299856]
[1753197585287,0.002,3710.5,3710.4,16.81412577]
[1753197586491,0.002,3710.9,3710.8,4.01143669]
[1753197586658,0.002,3710.9,3710.8,16.26603418]
[1753197586862,0.002,3710.9,3710.8,16.23908582]
[1753197587074,0.002,3710.9,3710.8,16.48508582]
[1753197587471,0.002,3710.9,3710.8,12.22808582]
[1753197587668,0.002,3710.9,3710.8,16.23708582]
[1753197587993,0.002,3710.9,3710.8,16.48308582]
[1753197588371,0.002,3710.9,3710.8,16.72792162]
[1753197589698,1e-08,3710.9,3710.8,16.72792162]
[1753197589999,1e-08,3711.6,3711.5,7.00992843]
[1753197590291,1e-08,3711.6,3711.5,30.46209997]
[1753197590463,1e-08,3711.6,3711.5,30.70809997]
[1753197590863,1e-08,3711.6,3711.5,19.74109997]
[1753197591193,1e-08,3711.6,3711.5,12.23346423]
[1753197591379,1e-08,3711.6,3711.5,15.78346423]
[1753197592706,1e-08,3711.6,3711.5,15.78280031]
[1753197593309,2.69282319,3713.6,3711.5,15.78280031]
[1753197593310,0.7611,3715.4,3712.0,0.8196]
[1753197593510,2.69193496,3714.8,3713.3,0.8196]
[1753197593686,2.69193496,3714.8,3712.6,6.93610145]
[1753197593687,0.4578,3715.3,3714.0,0.55]
[1753197593890,0.004,3715.5,3714.2,0.8196]
[1753197594088,0.004,3715.5,3714.8,0.55]
[1753197594428,0.004,3715.5,3715.2,0.55]
[1753197594712,0.4578,3718.1,3716.0,0.55]
[1753197594873,2.68974219,3717.9,3716.6,2.69063122]
[1753197595079,0.7611,3719.4,3717.0,0.55]
[1753197595375,0.7611,3719.4,3717.1,6.48890269]
[1753197595376,0.4578,3718.4,3717.1,6.48890269]
[1753197595577,3.45064816,3718.1,3717.2,4.366]
[1753197595884,2.68983511,3717.7,3716.4,0.8107]
[1753197596211,0.4578,3718.0,3716.7,0.8107]
[1753197596430,0.4578,3718.0,3716.8,4.39690486]
[1753197596575,2.68976276,3717.8,3716.9,0.55]
[1753197596776,0.7728,3720.0,3718.1,0.55]
[1753197597077,2.68878154,3719.2,3718.4,0.55]
[1753197597308,0.4578,3719.9,3718.4,0.55]
[1753197597309,2.68797519,3720.3,3718.6,0.55]
[1753197597511,0.4578,3720.6,3719.2,0.55]
[1753197597698,0.004,3720.7,3719.4,3.55]
[1753197597899,2.68820544,3720.0,3719.6,3.55]
[1753197598099,2.68801278,3720.3,3719.7,4.562]
[1753197598298,2.68831657,3719.8,3719.7,4.562]
[1753197598637,2.68831657,3719.8,3718.7,4.563]
[1753197598638,0.4578,3719.8,3718.7,4.563]
[1753197598916,2.68885385,3719.1,3718.8,9.114]
[1753197599119,2.68806508,3720.2,3719.1,3.55]
[1753197599323,0.4578,3720.4,3719.3,3.55]
[1753197599612,0.4578,3720.4,3719.1,0.55]
[1753197599842,0.7895,3721.0,3719.1,0.55]
[1753197599843,1.2473,3721.0,3719.3,3.55]
[1753197600046,0.01381975,3725.5,3720.7,1.3788]
[1753197600319,2.6860059,3723.0,3720.9,0.55]
[1753197600476,0.4578,3723.1,3720.9,0.55]
[1753197600477,0.48878836,3722.9,3720.9,0.55]
[1753197600677,0.3174775,3722.8,3721.0,0.02687449]
[1753197600911,0.4578,3723.3,3721.1,0.55]
[1753197601132,0.1336,3723.1,3722.4,0.1336]
[1753197601293,2.68629452,3722.6,3722.5,4.631]
[1753197601492,0.4578,3723.0,3721.3,0.1]
[1753197601711,0.4578,3724.3,3721.9,0.55]
[1753197601874,0.34527279,3724.2,3721.5,0.1]
[1753197602076,0.4578,3724.1,3721.7,0.7769]
[1753197602393,0.4578,3724.1,3720.8,6.701]
[1753197602394,0.03098836,3724.0,3722.3,0.1]
[1753197602595,2.68716074,3721.4,3721.0,0.1]
[1753197602923,2.68730517,3721.2,3720.2,4.671]
[1753197603077,2.68809978,3720.1,3720.0,4.671]
[1753197603527,0.4578,3720.9,3720.0,4.671]
[1753197603686,3.0,3721.5,3720.1,0.10934069]
[1753197603884,0.4578,3721.4,3720.6,0.1]
[1753197604227,2.68759406,3720.8,3720.7,0.00933213]
[1753197604390,2.68766629,3720.7,3720.6,0.1]
[1753197604579,2.68766629,3720.7,3719.8,0.00933677]
[1753197604580,2.68802752,3720.2,3720.1,0.1]
[1753197604784,2.68746119,3721.0,3719.4,7.2451]
[1753197604785,2.68831657,3719.8,3719.7,0.1]
[1753197605106,2.68875026,3719.2,3719.1,0.1]
[1753197605743,2.68925642,3718.5,3718.4,0.1]
[1753197606024,2.68954573,3718.1,3718.0,6.554]
[1753197606242,0.4578,3719.1,3718.0,15.233]
[1753197606424,2.68954573,3718.1,3718.0,15.233]
[1753197606624,2.68954573,3718.1,3718.0,15.133]
[1753197606798,2.68954573,3718.1,3718.0,11.133]
[1753197606994,0.4578,3718.1,3718.0,11.133]
[1753197607301,0.4578,3718.7,3718.1,0.1]
[1753197607497,3.1464815,3719.3,3718.6,0.1]
[1753197607696,2.6877275,3720.7,3718.2,2.69883372]
[1753197607697,0.4578,3719.8,3719.3,0.1]
[1753197607893,3.14517738,3721.1,3720.2,0.1]
[1753197608139,2.68773853,3720.6,3720.5,0.1]
[1753197608437,2.68769701,3720.7,3720.5,0.1]
[1753197608612,2.68773853,3720.6,3720.5,0.1]
[1753197608814,0.4578,3721.1,3720.5,0.1]
[1753197609037,0.4578,3721.7,3720.8,0.1]
[1753197609339,0.4578,3721.7,3720.6,0.009334]
[1753197609340,0.4578,3722.4,3721.9,0.1]
[1753197609510,6.453,3724.6,3720.5,6.71587033]
[1753197609511,0.4578,3723.1,3722.3,0.1]
[1753197609716,0.4578,3723.1,3722.0,4.6883095]
[1753197609717,3.14374587,3723.1,3722.9,0.1]
[1753197609938,2.68593376,3723.1,3723.0,4.679]
[1753197610240,0.4578,3723.8,3723.0,4.678]
[1753197610543,0.77210778,3723.8,3723.0,4.678]
[1753197610740,2.68550098,3723.7,3723.0,4.678]
[1753197610910,0.77210778,3723.8,3723.1,0.00928807]
[1753197611289,0.77210778,3723.8,3723.1,0.00928929]
[1753197611290,2.68586162,3723.2,3723.1,0.00928929]
[1753197611567,2.6860059,3723.0,3722.9,1.1]
[1753197611769,3.1438059,3723.0,3722.9,5.772]
[1753197612086,3.1438059,3723.0,3722.9,1.1336]
[1753197612225,3.1438059,3723.0,3722.4,4.668]
[1753197612226,2.68636668,3722.5,3722.4,4.668]
[1753197612567,2.68636668,3722.5,3721.1,0.7501]
[1753197612568,2.68655711,3722.3,3721.1,0.7501]
[1753197612866,2.68679975,3721.9,3721.8,0.1]
[1753197613022,2.68651102,3722.3,3722.2,0.2336]
[1753197613227,1.2337,3723.1,3722.2,0.2336]
[1753197613228,0.4578,3723.1,3722.6,0.1]
[1753197613454,2.68651102,3722.3,3722.2,4.8986]
[1753197613770,0.35951128,3723.5,3723.0,0.1336]
[1753197614071,3.14315674,3723.9,3723.5,0.1336]
[1753197614230,2.6855731,3723.6,3723.5,0.1336]
[1753197614571,0.03356876,3723.7,3722.6,0.1]
[1753197614774,2.68593376,3723.1,3723.0,0.1]
[1753197614925,2.68593376,3723.1,3721.7,0.55]
[1753197614926,2.68586162,3723.2,3722.6,0.1]
[1753197615124,0.26858616,3723.2,3721.7,3.55]
[1753197615377,2.68629452,3722.6,3722.5,0.1]
[1753197615539,3.14409452,3722.6,3722.5,0.1]
[1753197615744,3.14409452,3722.6,3722.5,4.759]
[1753197615954,3.14409452,3722.6,3722.5,0.1]
[1753197616140,0.4578,3722.6,3722.5,4.658]
[1753197616340,2.68651102,3722.3,3722.2,4.758]
[1753197616548,3.14431102,3722.3,3722.2,4.758]
[1753197616887,2.68622236,3722.7,3722.6,0.1]
[1753197617180,0.72639518,3723.0,3722.6,0.1]
[1753197617382,2.68622236,3722.7,3722.6,4.754]
[1753197617676,0.002,3723.2,3722.9,0.1]
[1753197617834,2.6860059,3723.0,3722.9,0.1]
[1753197618334,2.68629452,3722.6,3722.5,0.1]
[1753197619063,2.68629452,3722.6,3721.5,6.453]
[1753197619064,3.13689452,3722.6,3721.5,6.453]
[1753197619236,2.68647565,3722.4,3721.6,8.65]
[1753197619430,2.68643614,3722.5,3722.2,0.1]
[1753197619635,2.68643885,3722.4,3722.3,4.647]
[1753197619967,2.68651102,3722.3,3722.2,0.1]
[1753197620274,2.68651102,3722.3,3721.6,4.0]
[1753197620275,2.68672756,3722.0,3721.9,0.1]
[1753197620476,0.4506,3723.5,3722.2,0.1]
[1753197620634,2.68651102,3722.3,3722.2,0.1]
[1753197620833,0.4506,3722.3,3722.2,0.1]
[1753197621046,2.68622236,3722.7,3722.6,0.1]
[1753197621249,0.002,3723.2,3723.0,0.1]
[1753197621593,2.68622236,3722.7,3722.6,4.784]
[1753197621796,2.6861709,3722.8,3722.7,0.1]
[1753197622083,2.6866331,3722.2,3721.7,3.0]
[1753197622292,0.4506,3723.0,3721.9,4.0]
[1753197622293,3.13660593,3723.0,3721.9,4.0]
[1753197622587,0.002,3723.2,3723.1,0.1]
[1753197622736,0.002,3723.2,3723.1,4.791]
[1753197624182,0.002,3723.2,3723.1,6.10368174]
[1753197624481,0.002,3723.2,3723.1,12.5476155]
[1753197624685,0.002,3723.2,3723.1,12.5812155]
[1753197624849,0.002,3723.2,3723.1,5.30428174]
[1753197625249,0.002,3723.2,3723.1,10.00228174]
[1753197625986,0.002,3723.2,3723.1,5.30428174]
[1753197626188,2.68656159,3723.2,3723.1,4.37308174]
[1753197626397,3.40581775,3723.2,3723.1,4.47308174]
[1753197626596,0.00069997,3723.2,3723.1,4.47308174]
[1753197626897,0.00069997,3723.2,3723.1,9.16808174]
[1753197626898,2.68656159,3723.2,3723.1,9.16808174]
[1753197627097,0.1336,3724.3,3723.1,9.16808174]
[1753197627299,0.1336,3724.3,3724.2,0.1]
[1753197627300,2.68506833,3724.3,3724.2,0.1]
[1753197627505,2.68506833,3724.3,3724.2,5.03848174]
[1753197627872,2.68506833,3724.3,3724.2,0.33948174]
[1753197628061,2.68506833,3724.3,3724.2,0.23948174]
[1753197628264,2.68506833,3724.3,3724.2,4.93448174]
[1753197628265,3.13566833,3724.3,3724.2,4.93448174]
[1753197628470,2.68506833,3724.3,3724.2,5.03448174]
[1753197628821,2.68502102,3724.4,3724.2,5.03448174]
[1753197628993,2.68467298,3724.9,3724.4,0.1]
[1753197629319,2.68370955,3726.2,3724.4,0.1]
[1753197629320,2.68319514,3726.9,3725.6,0.1]
[1753197629535,2.68319514,3726.9,3725.7,0.2410004]
[1753197629536,2.68341115,3726.6,3725.7,0.2410004]
[1753197629677,2.68449169,3725.1,3725.0,0.1]
[1753197630059,3.40354086,3725.1,3725.0,0.24110939]
[1753197630206,3.40354086,3725.1,3723.8,0.7792]
[1753197630207,2.68506833,3724.3,3723.6,0.1]
[1753197630406,2.68535674,3723.9,3723.8,4.0]
[1753197630611,0.26844917,3725.1,3723.8,4.0]
[1753197630612,0.4506,3724.6,3723.8,4.0]
[1753197630923,0.4506,3724.6,3722.6,2.68628143]
[1753197630924,0.8198,3723.5,3722.6,0.1]
[1753197631076,0.4506,3723.4,3722.6,0.1]
[1753197631277,2.6861502,3722.8,3722.7,0.1]
[1753197631521,2.68608703,3722.9,3722.7,0.1]
[1753197631683,2.68586162,3723.2,3723.1,0.1]
[1753197631881,2.68576256,3723.4,3723.1,4.815]
[1753197632180,0.4506,3724.9,3723.8,0.1]
[1753197632375,0.4506,3724.9,3723.4,0.55]
[1753197632376,0.4506,3724.9,3724.6,0.1]
[1753197632620,2.68477998,3724.7,3724.6,0.1]
[1753197633116,0.7852,3725.6,3724.0,0.7628]
[1753197633117,2.68485206,3724.6,3724.5,4.725]
[1753197633413,2.68506833,3724.3,3724.2,4.822]
[1753197633626,2.68506833,3724.3,3722.7,7.12687606]
[1753197633627,2.68528464,3724.0,3723.9,0.1]
[1753197633822,2.68550098,3723.7,3723.6,0.1]
[1753197633980,2.68564522,3723.5,3723.4,4.724]
[1753197634181,2.68564522,3723.5,3723.4,4.825]
[1753197634513,2.68551055,3723.7,3723.4,4.725]
[1753197634717,2.68540215,3723.9,3723.6,0.1]
[1753197635027,0.98755671,3724.6,3724.1,0.1]
[1753197635226,0.98755671,3724.6,3724.3,0.1]
[1753197635227,0.4506,3724.6,3724.3,0.1]
[1753197635534,0.4506,3724.5,3723.9,0.1]
[1753197635830,0.4506,3724.5,3724.2,0.1]
[1753197636109,0.4506,3724.5,3723.1,0.7781]
[1753197636110,0.4506,3724.4,3723.1,0.7781]
[1753197636360,0.4506,3724.4,3723.5,0.1]
[1753197636361,2.6855731,3723.6,3723.5,0.1]
[1753197636533,0.4506,3723.6,3722.5,0.7926]
[1753197636730,2.68575355,3723.4,3723.3,0.1]
[1753197636876,0.7981,3724.2,3723.3,4.826]
[1753197637079,2.68564522,3723.5,3723.4,0.1]
[1753197637280,2.68564522,3723.5,3723.4,0.2336]
[1753197637481,2.68564522,3723.5,3722.0,6.643055]
[1753197637482,0.26856452,3723.5,3722.0,7.2332]
[1753197637716,2.71877768,3724.1,3722.1,4.0]
[1753197637879,2.71877768,3724.1,3722.0,7.2332]
[1753197637880,0.83166425,3724.2,3722.2,4.721]
[1753197638084,2.68607321,3723.0,3722.2,7.40752226]
[1753197638318,0.7981,3724.2,3722.4,2.68643885]
[1753197638480,0.7981,3724.2,3722.3,0.4631]
[1753197638696,3.13581253,3724.1,3722.1,3.0]
[1753197638905,2.68613573,3722.9,3722.1,5.68665067]
[1753197639085,2.68535674,3723.9,3722.3,3.0]
[1753197639280,2.68598376,3723.1,3722.3,3.0]
[1753197639519,0.002,3723.7,3722.3,3.0]
[1753197639686,2.68621074,3722.8,3722.3,3.0]
[1753197640008,2.68564522,3723.5,3722.4,4.713]
[1753197640009,2.68629527,3722.6,3722.4,4.713]
[1753197640205,0.4506,3723.1,3722.5,4.712]
[1753197640415,2.68629452,3722.6,3722.5,4.712]
[1753197640923,0.002,3723.7,3722.5,4.712]
[1753197640924,0.4526,3723.7,3722.5,4.712]
[1753197641229,0.002,3723.7,3722.6,0.55]
[1753197641720,0.002,3723.7,3722.5,4.712]
[1753197642023,0.4526,3723.7,3722.6,4.712]
[1753197642224,2.6861502,3722.8,3722.7,4.95450044]
[1753197642535,0.4506,3723.4,3722.7,0.24350044]
[1753197642740,0.03357236,3723.3,3722.8,0.24360877]
[1753197642886,0.8323,3722.8,3722.4,4.712]
[1753197643085,2.68629452,3722.6,3722.5,0.24369081]
[1753197643507,3.13689452,3722.6,3722.5,0.24369081]
[1753197644321,2.6865832,3722.2,3722.1,0.001]
[1753197644822,2.6865832,3722.2,3720.9,4.0]
[1753197644823,2.68744961,3721.0,3720.9,4.0]
[1753197645023,2.68781077,3720.5,3719.5,0.8235]
[1753197645186,2.68781077,3720.5,3719.5,0.001]
[1753197645187,3.13841077,3720.5,3719.5,0.001]
[1753197645386,2.68809978,3720.1,3719.5,0.001]
[1753197645621,2.68846112,3719.6,3719.5,0.001]
[1753197645937,2.68896716,3718.9,3718.8,6.08588514]
[1753197646242,3.13956716,3718.9,3718.8,6.08588514]
[1753197646784,3.13956716,3718.9,3718.8,0.001]
[1753197647022,0.4506,3718.9,3718.8,0.001]
[1753197647320,3.7936,3719.7,3718.8,0.001]
[1753197647321,0.7936,3719.7,3718.8,0.001]
[1753197647826,0.4747,3720.3,3718.9,4.705]
[1753197648130,0.1344,3719.9,3719.2,0.1344]
[1753197648315,2.6887259,3719.3,3718.9,0.001]
[1753197648526,2.6887259,3719.3,3718.8,1e-08]
[1753197648527,2.68889486,3719.0,3718.8,1e-08]
[1753197648721,2.68889486,3719.0,3715.5,0.14009063]
[1753197648722,2.68983397,3717.8,3716.8,2.69041531]
[1753197648968,0.1344,3718.8,3717.5,0.1344]
[1753197648969,0.6091,3718.2,3717.5,0.1344]
[1753197649170,3.4747,3717.7,3717.4,0.1344]
[1753197649327,0.4747,3717.6,3715.7,4.705]
[1753197649664,0.03362474,3717.5,3715.7,4.705]
[1753197649881,0.03362474,3717.5,3715.8,0.00541103]
[1753197650041,0.4747,3717.4,3715.8,0.00541103]
[1753197650222,0.4747,3717.4,3715.5,0.14009063]
[1753197650223,0.83042655,3717.3,3715.6,0.00541103]
[1753197650422,3.83042655,3717.3,3715.5,0.14009063]
[1753197650625,0.4747,3717.2,3715.4,0.41980953]
[1753197650867,4.703,3717.1,3715.0,0.00541675]
[1753197651074,4.703,3717.1,3714.8,0.8034]
[1753197651075,2.69094998,3716.2,3715.1,7.94895013]
[1753197651274,0.4747,3717.0,3715.1,0.55088168]
[1753197651430,0.4747,3716.9,3715.3,2.69151107]
[1753197651774,0.4747,3716.9,3715.4,3.12400024]
[1753197652068,0.8064,3718.0,3716.9,2.69034634]
[1753197652268,2.68969041,3717.9,3716.7,2.69052311]
[1753197652568,0.4747,3717.8,3716.4,0.00539835]
[1753197652752,0.4747,3717.8,3716.5,0.39156576]
[1753197652939,0.4747,3717.8,3716.5,0.39696632]
[1753197653270,0.03362293,3717.7,3716.5,0.39156576]
[1753197653432,0.03362293,3717.7,3716.1,4.715]
[1753197653433,0.4747,3717.6,3716.1,4.715]
[1753197653634,0.4747,3717.6,3715.2,4.715]
[1753197653635,3.0,3717.1,3715.2,4.715]
[1753197653846,2.69077769,3716.4,3715.2,4.715]
[1753197654170,0.50832927,3717.0,3715.2,4.715]
[1753197654171,2.69093283,3716.2,3715.3,0.55132]
[1753197654382,0.4747,3716.3,3715.3,0.55132]
[1753197654870,0.4747,3716.8,3715.4,4.71742449]
[1753197655192,0.03363198,3716.7,3715.3,0.55132]
[1753197655467,2.69167942,3715.2,3714.9,4.71]
[1753197655683,0.03363922,3715.9,3714.7,6.447]
[1753197655829,0.03363922,3715.9,3715.0,4.709]
[1753197656028,0.4747,3716.3,3715.0,4.709]
[1753197656343,0.4747,3716.3,3715.1,0.00542743]
[1753197656754,0.8202,3716.7,3715.1,0.00542743]
[1753197656755,0.8202,3716.7,3715.1,3.00542743]
[1753197656967,2.6912536,3715.8,3715.1,3.00542743]
[1753197657158,2.69123813,3715.8,3715.2,5.01754274]
[1753197657367,0.4747,3716.3,3715.2,4.72242978]
[1753197657571,2.69100489,3716.1,3715.3,2.69150547]
[1753197657759,0.03363108,3716.8,3715.2,4.717]
[1753197657958,0.4747,3716.4,3715.2,4.72242145]
[1753197658170,2.69115238,3715.9,3715.3,0.77224215]
[1753197658374,0.4747,3716.4,3715.3,0.77224215]
[1753197658680,2.6914724,3715.5,3715.2,4.713]
[1753197658888,0.79663741,3716.1,3714.7,6.447]
[1753197659064,0.4747,3715.9,3714.7,6.447]
[1753197659381,2.69193496,3714.8,3714.7,6.447]
[1753197659581,2.69193496,3714.8,3714.7,7.21358175]
[1753197659782,2.69193496,3714.8,3714.7,6.5814]
[1753197660084,3.16663496,3714.8,3714.7,6.447]
[1753197660388,2.69126154,3715.8,3714.7,6.447]
[1753197660389,1.2619,3716.7,3714.7,4.2373]
[1753197660560,8.09464514,3718.6,3715.0,3.0]
[1753197660561,0.7872,3717.5,3715.0,3.0]
[1753197660760,0.7872,3717.5,3714.9,0.8048]
[1753197660761,2.69031104,3717.1,3716.2,0.1344]
[1753197660961,0.7872,3717.5,3715.3,0.55]
[1753197660962,3.2994534,3717.0,3715.4,0.00540903]
[1753197661271,2.69135536,3715.6,3715.5,4.72]
[1753197661475,0.1344,3716.4,3715.8,0.1344]
[1753197661806,0.4747,3718.7,3716.6,3.0]
[1753197662110,2.68982071,3717.8,3716.9,2.69041405]
[1753197662252,2.68925642,3718.5,3717.0,4.757]
[1753197662591,0.8251,3717.8,3716.4,4.757]
[1753197662760,2.69070361,3716.5,3716.4,4.757]
[1753197662969,0.50291984,3717.7,3715.9,0.7723]
[1753197662970,2.69012455,3717.3,3715.9,0.7723]
[1753197663158,3.77475428,3717.2,3715.7,4.759]
[1753197663353,2.6912105,3715.8,3715.7,4.759]
[1753197663552,2.69026929,3717.1,3715.2,0.7723]
[1753197663553,0.02821984,3716.9,3715.2,0.7723]
[1753197663779,0.74653444,3717.2,3715.7,4.759]
[1753197663780,2.6903481,3717.0,3715.7,4.759]
[1753197663988,0.77475428,3717.2,3715.7,4.759]
[1753197664195,2.69059099,3716.7,3715.8,0.5028121]
[1753197664362,0.8251,3717.8,3716.0,0.7638]
[1753197664565,0.4747,3718.3,3716.2,2.69092083]
[1753197664759,2.68896716,3718.9,3716.6,0.7638]
[1753197665061,2.68950572,3718.2,3717.1,0.55]
[1753197665261,2.68911178,3718.7,3717.2,0.4325]
[1753197665479,0.4747,3719.2,3717.8,0.8026]
[1753197665677,2.68876052,3719.2,3717.9,4.756]
[1753197665883,2.68881877,3719.2,3718.1,2.68954573]